[Event "GER-ch Youth-U10 2022"]
[Site "Willingen"]
[Date "2022.06.10"]
[Round "9.9"]
[White "Peglau, Paul David"]
[Black "Kutz, Paul Matti"]
[Result "1-0"]
[ECO "A25"]
[WhiteElo "1623"]
[BlackElo "1202"]
[Annotator "NA RC COMBH"]
[PlyCount "119"]
[EventDate "2022.06.05"]
[EventType "swiss"]
[EventRounds "11"]
[EventCountry "GER"]
[SourceTitle "playchess.com"]
[Source "ChessBase"]
[SourceQuality "1"]
[TimeControl "40/4500+30:900+30"]

1. c4 {[%emt 0:00:31]} e5 {[%emt 0:00:06]} 2. Nc3 {[%emt 0:00:06]} g6 {[%emt 0:00:08]} 3. g3 {[%emt 0:00:25]} Bg7 {[%emt 0:00:08]} 4. Bg2 {[%emt 0:00:02]} d6 {[%emt 0:00:13]} 5. e3 {[%emt 0:01:44]} Nc6 {[%emt 0:01:53]} 6. Nge2 {[%emt 0:01:45]} Nf6 {[%emt 0:00:54]} 7. O-O {[%emt 0:01:20]} Be6 {[%emt 0:01:04]} 8. d4 {[%emt 0:09:17]} Bxc4 {[%emt 0:04:52]} 9. Qa4 {[%emt 0:04:33]} d5 {[%emt 0:01:22]} 10. dxe5 {[%emt 0:02:54]} Nd7 {[%emt 0:01:43]} 11. Rd1 {[%emt 0:05:17]} Nb6 {[%emt 0:00:39]} 12. Qc2 {[%emt 0:04:02]} Bxe5 {[%emt 0:02:05]} 13. Nf4 {[%emt 0:03:42]} Nb4 {[%emt 0:07:05]} 14. Qd2 {[%emt 0:03:15]} O-O {[%emt 0:07:45]} 15. Ncxd5 {[%emt 0:05:06]} N4xd5 {[%emt 0:00:22]} 16. Nxd5 {[%emt 0:00:31]} Nxd5 {[%emt 0:00:18]} 17. Bxd5 {[%emt 0:00:17]} Bxd5 {[%emt 0:00:07]} 18. Qxd5 {[%emt 0:00:01]} Qxd5 {[%emt 0:00:10]} 19. Rxd5 {[%emt 0:00:02]} Bd6 {[%emt 0:00:36]} 20. Bd2 {[%emt 0:00:41]} Rfe8 {[%emt 0:00:35]} 21. Bc3 {[%emt 0:00:43]} Rad8 {[%emt 0:00:33]} 22. Rad1 {[%emt 0:00:22]} Be7 {[%emt 0:01:16]} 23. Kg2 {[%emt 0:03:40]} c6 {[%emt 0:02:17]} 24. Rd7 {[%emt 0:01:21]} Kf8 {[%emt 0:00:57]} 25. R1d2 {[%emt 0:02:12]} Rb8 {[%emt 0:02:51]} 26. Be5 {[%emt 0:03:41]} Rbd8 {[%emt 0:01:13]} 27. Kf3 {[%emt 0:03:01]} f6 {[%emt 0:09:24]} 28. Bc3 {[%emt 0:06:08]} Rb8 {[%emt 0:00:25]} 29. Kf4 {[%emt 0:03:09]} b5 {[%emt 0:00:42]} 30. b3 {[%emt 0:03:48]} b4 {[%emt 0:01:12]} 31. Bb2 {[%emt 0:00:56]} Rb5 {[%emt 0:00:32]} 32. Rxa7 {[%emt 0:06:27]} Rf5+ {[%emt 0:09:06]} 33. Kg4 {[%emt 0:00:13]} Bc5 {[%emt 0:04:20]} 34. Rxh7 {[%emt 0:02:47]} Kg8 {[%emt 0:01:47]} 35. Rhd7 {[%emt 0:01:25]} Bb6 {[%emt 0:09:25]} 36. Kh3 {[%emt 0:01:36]} Ra8 {[%emt 0:00:38]} 37. Bd4 {[%emt 0:01:30]} c5 {[%emt 0:00:58]} 38. Ba1 {[%emt 0:00:18]} c4 {[%emt 0:01:13]} 39. bxc4 {[%emt 0:01:39]} b3 {[%emt 0:00:59]} 40. Rb7 {[%emt 0:02:45]} Ba5 {[%emt 0:00:06]} 41. Re2 {[%emt 0:16:01]} Be1 {[%emt 0:17:13]} 42. Rxb3 {[%emt 0:00:00]} Bxf2 {[%emt 0:00:00]} 43. Kg2 {[%emt 0:00:00]} Bxe3 {[%emt 0:00:00]} 44. Rbxe3 {[%emt 0:00:00]} Kg7 {[%emt 0:00:00]} 45. Bc3 {[%emt 0:00:00]} Ra4 {[%emt 0:00:00]} 46. Re7+ {[%emt 0:00:00]} Kh6 {[%emt 0:00:00]} 47. c5 {[%emt 0:00:00]} Rc4 {[%emt 0:00:00]} 48. Bd2+ {[%emt 0:00:00]} g5 {[%emt 0:00:00]} 49. Be3 {[%emt 0:00:00]} Kg6 {[%emt 0:00:00]} 50. Bf2 {[%emt 0:00:00]} Rd5 {[%emt 0:00:00]} 51. R7e4 {[%emt 0:00:00]} Rc1 {[%emt 0:00:00]} 52. a4 {[%emt 0:00:00]} f5 {[%emt 0:00:00]} 53. Re6+ {[%emt 0:00:00]} Kh5 {[%emt 0:00:00]} 54. c6 {[%emt 0:00:00]} Rd3 {[%emt 0:00:00]} 55. Bb6 {[%emt 0:00:00]} f4 {[%emt 0:00:00]} 56. gxf4 {[%emt 0:00:00]} gxf4 {[%emt 0:00:00]} 57. R2e5+ {[%emt 0:00:20]} Kg4 {[%emt 0:00:00]} 58. Rg6+ {[%emt 0:00:32]} Kh4 {[%emt 0:00:00]} 59. Bd8+ {[%emt 0:00:46]} Rxd8 {[%emt 0:00:00]} 60. Rh6+ {[%emt 0:00:13]} 1-0

[Event "GER-ch Youth-U10 2022"]
[Site "Willingen"]
[Date "2022.06.10"]
[Round "9.10"]
[White "Wolf, Noah"]
[Black "Vartanian, Roman"]
[Result "0-1"]
[ECO "B50"]
[WhiteElo "1073"]
[BlackElo "1511"]
[Annotator "NA RC COMBH"]
[PlyCount "60"]
[EventDate "2022.06.05"]
[EventType "swiss"]
[EventRounds "11"]
[EventCountry "GER"]
[SourceTitle "playchess.com"]
[Source "ChessBase"]
[SourceQuality "1"]
[TimeControl "40/4500+30:900+30"]

1. e4 {[%emt 0:00:02]} c5 {[%emt 0:00:14]} 2. Nf3 {[%emt 0:00:12]} d6 {[%emt 0:00:08]} 3. c3 {[%emt 0:00:43]} Nf6 {[%emt 0:00:11]} 4. h3 {[%emt 0:00:28]} a6 {[%emt 0:01:01]} 5. a3 {[%emt 0:01:14]} Nbd7 {[%emt 0:02:41]} 6. Bd3 {[%emt 0:01:39]} e6 {[%emt 0:01:10]} 7. O-O {[%emt 0:01:13]} Be7 {[%emt 0:00:23]} 8. Bc2 {[%emt 0:00:27]} Qc7 {[%emt 0:00:53]} 9. d4 {[%emt 0:01:48]} cxd4 {[%emt 0:00:37]} 10. cxd4 {[%emt 0:00:25]} b6 {[%emt 0:03:50]} 11. Re1 {[%emt 0:00:36]} Bb7 {[%emt 0:00:46]} 12. Qd3 {[%emt 0:02:10]} Rd8 {[%emt 0:05:02]} 13. Bg5 {[%emt 0:01:11]} e5 {[%emt 0:02:08]} 14. Nbd2 {[%emt 0:00:32]} O-O {[%emt 0:03:02]} 15. Rac1 {[%emt 0:00:58]} Qb8 {[%emt 0:00:22]} 16. Nf1 {[%emt 0:08:28]} Rfe8 {[%emt 0:12:39]} 17. Ng3 {[%emt 0:00:52]} exd4 {[%emt 0:02:41]} 18. e5 {[%emt 0:05:21]} Nc5 {[%emt 0:06:05]} 19. Qxd4 {[%emt 0:03:54]} dxe5 {[%emt 0:02:58]} 20. Qxe5 {[%emt 0:00:42]} Bd6 {[%emt 0:02:42]} 21. Qf5 {[%emt 0:02:01]} Bc8 {[%emt 0:05:17]} 22. Rxe8+ {[%emt 0:00:54]} Rxe8 {[%emt 0:00:47]} 23. Rd1 {[%emt 0:06:45]} Bxf5 {[%emt 0:01:10]} 24. Nxf5 {[%emt 0:00:21]} Be5 {[%emt 0:01:35]} 25. Nxe5 {[%emt 0:00:33]} Qxe5 {[%emt 0:01:11]} 26. Bxf6 {[%emt 0:00:57]} Qxf6 {[%emt 0:00:12]} 27. Rd6 {[%emt 0:02:01]} Qxb2 {[%emt 0:02:35]} 28. Bd1 {[%emt 0:02:13]} g6 {[%emt 0:00:24]} 29. Ne3 {[%emt 0:01:12]} Ne4 {[%emt 0:00:27]} 30. Rd3 {[%emt 0:02:01]} Qxf2+ {[%emt 0:00:15]} 0-1

[Event "GER-ch Youth-U10 2022"]
[Site "Willingen"]
[Date "2022.06.10"]
[Round "9.11"]
[White "Zimmer, Tim"]
[Black "Sheng, Ming"]
[Result "0-1"]
[ECO "B45"]
[WhiteElo "1164"]
[BlackElo "1258"]
[Annotator "NA RC COMBH"]
[PlyCount "52"]
[EventDate "2022.06.05"]
[EventType "swiss"]
[EventRounds "11"]
[EventCountry "GER"]
[SourceTitle "playchess.com"]
[Source "ChessBase"]
[SourceQuality "1"]
[TimeControl "40/4500+30:900+30"]

1. e4 {[%emt 0:00:02]} c5 {[%emt 0:00:04]} 2. Nf3 {[%emt 0:00:09]} Nc6 {[%emt 0:00:08]} 3. d4 {[%emt 0:00:05]} cxd4 {[%emt 0:00:05]} 4. Nxd4 {[%emt 0:00:04]} Nf6 {[%emt 0:00:06]} 5. Nc3 {[%emt 0:00:37]} e6 {[%emt 0:00:49]} 6. Bb5 {[%emt 0:08:51]} Bb4 {[%emt 0:02:49]} 7. f3 {[%emt 0:01:16]} Qa5 {[%emt 0:02:50]} 8. Bxc6 {[%emt 0:10:31]} Bxc3+ {[%emt 0:02:10]} 9. bxc3 {[%emt 0:00:14]} Qxc3+ {[%emt 0:00:29]} 10. Bd2 {[%emt 0:00:18]} Qxd4 {[%emt 0:00:22]} 11. Bb5 {[%emt 0:00:05]} a6 {[%emt 0:00:46]} 12. Bd3 {[%emt 0:04:04]} d5 {[%emt 0:02:58]} 13. Rb1 {[%emt 0:01:49]} dxe4 {[%emt 0:02:38]} 14. Rb4 {[%emt 0:01:07]} Qe5 {[%emt 0:05:43]} 15. fxe4 {[%emt 0:01:12]} Nd5 {[%emt 0:01:53]} 16. Rc4 {[%emt 0:04:03]} O-O {[%emt 0:05:33]} 17. O-O {[%emt 0:01:08]} b5 {[%emt 0:00:46]} 18. Rxc8 {[%emt 0:07:36]} Raxc8 {[%emt 0:01:23]} 19. exd5 {[%emt 0:00:05]} Qxd5 {[%emt 0:00:49]} 20. Kh1 {[%emt 0:01:42]} e5 {[%emt 0:04:08]} 21. Qg4 {[%emt 0:06:11]} g6 {[%emt 0:19:14]} 22. Bb4 {[%emt 0:05:22]} Rfe8 {[%emt 0:05:16]} 23. Bf5 {[%emt 0:06:20]} Rc4 {[%emt 0:00:32]} 24. Qg3 {[%emt 0:06:10]} Rxb4 {[%emt 0:00:32]} 25. h4 {[%emt 0:01:07]} Rf4 {[%emt 0:01:14]} 26. Rxf4 {[%emt 0:03:15]} exf4 {[%emt 0:00:16]} 0-1

[Event "GER-ch Youth-U10 2022"]
[Site "Willingen"]
[Date "2022.06.10"]
[Round "9.12"]
[White "Lee, Ho In"]
[Black "Van 't Hof, Eric"]
[Result "1-0"]
[ECO "C59"]
[WhiteElo "1396"]
[BlackElo "2081"]
[Annotator "TA"]
[PlyCount "101"]
[EventDate "2022.06.05"]
[EventType "swiss"]
[EventRounds "11"]
[EventCountry "GER"]
[SourceTitle "playchess.com"]
[Source "ChessBase"]
[SourceQuality "1"]
[TimeControl "40/4500+30:900+30"]

{[%evp 27,101,0,-3,-4,37,0,-13,-26,0,-37,-8,0,0,-39,48,50,153,116,122,110,111,115,106,116,122,110,126,126,129,120,137,102,112,112,129,124,125,120,264,108,166,125,170,170,204,77,78,81,143,117,120,120,266,264,262,112,165,158,211,207,283,275,444,443,425,429,430,414,425,320,294,271,685,670,619,584]} 1. e4 {[%emt 0:00:04]} e5 {[%emt 0:00:06]} 2. Nf3 {[%emt 0:00:06]} Nc6 {[%emt 0:00:07]} 3. Bc4 {[%emt 0:00:22]} Nf6 {[%emt 0:00:08]} 4. Ng5 {[%emt 0:00:28]} d5 {[%emt 0:00:10]} 5. exd5 {[%emt 0:00:32]} Na5 {[%emt 0:00:09]} 6. Bb5+ {[%emt 0:00:26]} c6 {[%emt 0:00:08]} 7. dxc6 {[%emt 0:00:19]} bxc6 {[%emt 0:00:14]} 8. Be2 {[%emt 0:00:50]} h6 {[%emt 0:00:30]} 9. Nf3 {[%emt 0:00:25]} e4 {[%emt 0:00:21]} 10. Ne5 {[%emt 0:00:22]} Bd6 {[%emt 0:00:22]} 11. d4 {[%emt 0:00:36]} exd3 {[%emt 0:00:21]} 12. Nxd3 {[%emt 0:00:18]} O-O {[%emt 0:00:42]} 13. O-O {[%emt 0:01:14]} Qc7 {[%emt 0:01:00]} 14. h3 {[%emt 0:00:26]} c5 {[%emt 0:00:28]} 15. Nc3 {[%emt 0:05:31] [#] C59: Two Knights: 4 Ng5 d5 5 exd5 Na5 5 Bb5+ c6 6 dxc6 bxc6 7 Be2.} Bd7 $146 {[%emt 0:01:12] Prevents Nb5.} (15... Rb8 $5 {[%cal Rc5c4]}) ({Predecessor:} 15... Rb8 16. Re1 Bf5 17. Rb1 c4 18. Be3 cxd3 19. Bxd3 Rfd8 20. Kh1 Bxd3 21. cxd3 Bf4 22. Qa4 Bxe3 23. Rxe3 {0-1 (42) Kabanov,N (2467)-De Silva,L (2085) Chess.com INT 2021}) 16. Ne1 {[%emt 0:01:37]} (16. f4 $14) 16... Rad8 $11 {[%emt 0:01:40]} 17. Bd2 {[%emt 0:03:13] The position is equal.} Rfe8 {[%emt 0:02:20]} 18. Nb5 {[%emt 0:01:36]} (18. Nf3 $5 {[%cal Rc3b5]}) 18... Bxb5 {[%emt 0:00:23]} 19. Bxb5 {[%emt 0:00:33]} Re7 {[%emt 0:01:15] [#] aiming for ...Ne4.} 20. Nf3 {[%emt 0:04:19]} Nc6 {[%emt 0:03:31]} ({Black should play} 20... Ne4 $1 $15 21. Be3 {[#]} Bh2+ $1 22. Nxh2 Rxd1 23. Rfxd1 Qb7) 21. Re1 $36 {[%emt 0:10:53][%mdl 2048] White fights for an advantage.} Red7 {[%emt 0:00:35]} (21... Ne5 $14) 22. Qe2 {[%emt 0:08:50]} Re7 {[%emt 0:02:51]} 23. Qc4 {[%emt 0:04:43]} Ne5 {[%emt 0:05:03]} 24. Nxe5 {[%emt 0:01:39]} Rxe5 {[%emt 0:00:41]} 25. Rxe5 {[%emt 0:03:35]} Bxe5 {[%emt 0:00:18]} 26. Bc3 {[%emt 0:00:56]} Bxc3 {[%emt 0:01:26]} 27. Qxc3 {[%emt 0:00:14]} (27. bxc3 $6 Rd2 $14) 27... Ne4 {[%emt 0:01:14]} 28. Qe3 {[%emt 0:01:43]} Nd6 {[%emt 0:01:22]} 29. Ba4 {[%emt 0:03:41]} Nc4 {[%emt 0:01:28]} 30. Qc3 {[%emt 0:01:03]} Nb6 {[%emt 0:00:55]} 31. Bb5 {[%emt 0:02:03]} Nd5 {[%emt 0:00:55]} 32. Qb3 {[%emt 0:04:02]} Qe5 {[%emt 0:04:31]} (32... g6 $16 {was necessary.} 33. Re1 Kg7) 33. Bc4 {[%emt 0:02:18]} (33. Rd1 $18 {and the rest is easy.}) 33... Nf4 {[%emt 0:01:28]} (33... Rb8 $16 34. Qa3 Rb4 35. Bxd5 Qxd5) 34. Qb7 {[%emt 0:11:18]} Rf8 {[%emt 0:03:18]} 35. Rd1 {[%emt 0:05:24][%cal Ba1d1,Bd1d3,Bd3f3][%mdl 32]} Qf5 {[%emt 0:02:49]} 36. Bd3 {[%emt 0:01:59]} (36. Qxa7 Qxc2 37. Bxf7+ (37. Bb3 $2 Qe4 $19) 37... Kh8 $15) (36. Rd7 $18 {has better winning chances.}) 36... Nxd3 $16 {[%emt 0:01:19]} 37. Rxd3 {[%emt 0:00:23][%mdl 4096] Endgame KQR-KQR} Re8 {[%emt 0:00:44]} (37... Qe6 $142) 38. Rf3 {[%emt 0:03:21] White is more active.} Re1+ {[%emt 0:03:29]} 39. Kh2 {[%emt 0:00:22]} Qg6 {[%emt 0:01:10]} (39... Qe5+ $16 {keeps fighting.} 40. g3 f6) 40. Qc8+ $18 {[%emt 0:00:25]} (40. Qxa7 Qd6+ 41. Rg3 (41. g3 Qd5 $16) 41... g6 $16) 40... Kh7 {[%emt 0:00:15]} 41. Qf5 {[%emt 0:15:11]} (41. Qxc5 $18 {is more deadly. b3 is the strong threat.} Qe6 42. c4) 41... Re2 {[%emt 0:16:28]} (41... c4 $16 {was called for.}) 42. Qxg6+ {[%emt 0:01:33]} ({Don't take} 42. Qxf7 Qxf7 43. Rxf7 Rxc2 $16) ({But not} 42. Qxc5 Rxc2 43. Qd4 (43. Qxa7 Qd6+ 44. g3 f6 $16) 43... Qe6 $16) 42... fxg6 {[%emt 0:00:17] KR-KR} (42... Kxg6 $16 {was worth a try.} 43. Rc3 Re5) 43. Rc3 {[%emt 0:00:24]} Rxf2 {[%emt 0:00:12]} 44. Rxc5 {[%emt 0:00:08]} g5 $2 {[%emt 0:01:04]} (44... Rf6 45. Rc7 Ra6) 45. Rc7 {[%emt 0:00:08]} a5 {[%emt 0:00:16]} 46. a4 {[%emt 0:00:14]} Rf4 {[%emt 0:00:22]} 47. b3 {[%emt 0:00:10]} Rf5 {[%emt 0:00:19]} 48. c4 {[%emt 0:00:12]} Re5 {[%emt 0:00:51]} 49. Rb7 {[%emt 0:00:12]} Rc5 {[%emt 0:00:22]} (49... Kg6 50. Rb5 Re3) 50. Rb5 {[%emt 0:00:07]} Rc6 {[%emt 0:01:09]} 51. Rxa5 {[%emt 0:00:08] Weighted Error Value: White=0.24 (precise) /Black=0.44} 1-0

[Event "GER-ch Youth-U10 2022"]
[Site "Willingen"]
[Date "2022.06.10"]
[Round "9.13"]
[White "Stehning, Toni"]
[Black "Teng, David"]
[Result "1-0"]
[ECO "B23"]
[WhiteElo "1097"]
[BlackElo "1423"]
[Annotator "NA RC COMBH"]
[PlyCount "55"]
[EventDate "2022.06.05"]
[EventType "swiss"]
[EventRounds "11"]
[EventCountry "GER"]
[SourceTitle "playchess.com"]
[Source "ChessBase"]
[SourceQuality "1"]
[TimeControl "40/4500+30:900+30"]

1. e4 {[%emt 0:00:18]} c5 {[%emt 0:00:11]} 2. Nc3 {[%emt 0:00:11]} e6 {[%emt 0:00:16]} 3. Nge2 {[%emt 0:00:17]} d5 {[%emt 0:00:52]} 4. exd5 {[%emt 0:00:14]} exd5 {[%emt 0:00:12]} 5. d4 {[%emt 0:00:17]} c4 {[%emt 0:01:38]} 6. g3 {[%emt 0:00:46]} Nf6 {[%emt 0:01:24]} 7. Bg2 {[%emt 0:00:37]} Be7 {[%emt 0:02:41]} 8. Bg5 {[%emt 0:01:10]} Be6 {[%emt 0:03:35]} 9. O-O {[%emt 0:01:16]} h6 {[%emt 0:03:48]} 10. Bxf6 {[%emt 0:07:11]} Bxf6 {[%emt 0:00:14]} 11. Nf4 {[%emt 0:01:57]} Nc6 {[%emt 0:01:28]} 12. Ncxd5 {[%emt 0:01:16]} Bxd4 {[%emt 0:02:20]} 13. Nxe6 {[%emt 0:07:33]} fxe6 {[%emt 0:00:46]} 14. Qh5+ {[%emt 0:01:07]} Kf8 {[%emt 0:01:56]} 15. Nf4 {[%emt 0:00:30]} Qf6 {[%emt 0:02:18]} 16. Ng6+ {[%emt 0:01:46]} Kg8 {[%emt 0:02:15]} 17. Nxh8 {[%emt 0:02:20]} Kxh8 {[%emt 0:01:22]} 18. c3 {[%emt 0:01:48]} Bb6 {[%emt 0:00:32]} 19. Qf3 {[%emt 0:00:19]} Qe7 {[%emt 0:00:28]} 20. Rfe1 {[%emt 0:01:10]} Rf8 {[%emt 0:02:09]} 21. Rxe6 {[%emt 0:08:33]} Qc5 {[%emt 0:02:53]} 22. Qe3 {[%emt 0:01:55]} Qf5 {[%emt 0:03:10]} 23. Qe2 {[%emt 0:02:05]} Bxf2+ {[%emt 0:01:48]} 24. Kh1 {[%emt 0:01:16]} Qf7 {[%emt 0:14:07]} 25. Bd5 {[%emt 0:01:46]} Qf5 {[%emt 0:02:38]} 26. Bg2 {[%emt 0:01:07]} Qf7 {[%emt 0:00:56]} 27. Rf1 {[%emt 0:01:04]} Qf5 {[%emt 0:10:32]} 28. Re8 {[%emt 0:09:19]} 1-0

[Event "GER-ch Youth-U10 2022"]
[Site "Willingen"]
[Date "2022.06.10"]
[Round "9.14"]
[White "Junge, Mattheo Gabriel"]
[Black "Rudolph, Simon"]
[Result "1/2-1/2"]
[ECO "B03"]
[WhiteElo "1132"]
[BlackElo "1361"]
[Annotator "NA RC COMBH"]
[PlyCount "158"]
[EventDate "2022.06.05"]
[EventType "swiss"]
[EventRounds "11"]
[EventCountry "GER"]
[SourceTitle "playchess.com"]
[Source "ChessBase"]
[SourceQuality "1"]
[TimeControl "40/4500+30:900+30"]

1. e4 {[%emt 0:00:03]} Nf6 {[%emt 0:00:05]} 2. e5 {[%emt 0:00:17]} Nd5 {[%emt 0:00:05]} 3. d4 {[%emt 0:00:36]} d6 {[%emt 0:00:08]} 4. Bc4 {[%emt 0:01:14]} Nb6 {[%emt 0:00:08]} 5. Bd3 {[%emt 0:00:55]} Nc6 {[%emt 0:00:32]} 6. Nf3 {[%emt 0:00:36]} Bg4 {[%emt 0:00:25]} 7. exd6 {[%emt 0:01:28]} exd6 {[%emt 0:00:33]} 8. c3 {[%emt 0:00:47]} Be7 {[%emt 0:00:53]} 9. O-O {[%emt 0:00:33]} Nd5 {[%emt 0:01:10]} 10. Nbd2 {[%emt 0:02:33]} Nf6 {[%emt 0:00:29]} 11. Qc2 {[%emt 0:02:13]} O-O {[%emt 0:01:15]} 12. Ng5 {[%emt 0:04:23]} g6 {[%emt 0:01:58]} 13. h3 {[%emt 0:02:13]} Bd7 {[%emt 0:00:54]} 14. Nde4 {[%emt 0:03:36]} Nxe4 {[%emt 0:01:11]} 15. Nxe4 {[%emt 0:00:13]} d5 {[%emt 0:02:12]} 16. Nc5 {[%emt 0:01:43]} Bxc5 {[%emt 0:00:44]} 17. dxc5 {[%emt 0:00:28]} d4 {[%emt 0:01:11]} 18. b4 {[%emt 0:01:14]} dxc3 {[%emt 0:02:04]} 19. Qxc3 {[%emt 0:00:29]} Re8 {[%emt 0:01:39]} 20. Bb2 {[%emt 0:00:44]} f6 {[%emt 0:01:28]} 21. Qxf6 {[%emt 0:02:34]} Qxf6 {[%emt 0:00:16]} 22. Bxf6 {[%emt 0:00:16]} Nxb4 {[%emt 0:00:26]} 23. Bb1 {[%emt 0:01:27]} Re6 {[%emt 0:01:02]} 24. Bg5 {[%emt 0:01:04]} Nc6 {[%emt 0:01:09]} 25. a4 {[%emt 0:00:48]} Re5 {[%emt 0:01:10]} 26. Ba2+ {[%emt 0:04:17]} Be6 {[%emt 0:01:09]} 27. Bf6 {[%emt 0:02:03]} Re2 {[%emt 0:01:40]} 28. Bb1 {[%emt 0:04:04]} Bc4 {[%emt 0:01:25]} 29. Rc1 {[%emt 0:03:16]} Ba6 {[%emt 0:01:55]} 30. Ba2+ {[%emt 0:00:33]} Kf8 {[%emt 0:01:10]} 31. Re1 {[%emt 0:02:31]} Rae8 {[%emt 0:01:17]} 32. Red1 {[%emt 0:06:13]} Nb4 {[%emt 0:02:04]} 33. Bb3 {[%emt 0:03:10]} Nd3 {[%emt 0:01:26]} 34. Bd4 {[%emt 0:03:16]} Re1+ {[%emt 0:02:32]} 35. Rxe1 {[%emt 0:00:39]} Rxe1+ {[%emt 0:00:27]} 36. Rxe1 {[%emt 0:00:12]} Nxe1 {[%emt 0:00:05]} 37. f4 {[%emt 0:01:52]} Ke7 {[%emt 0:01:10]} 38. Kf2 {[%emt 0:03:16]} Nd3+ {[%emt 0:00:31]} 39. Ke3 {[%emt 0:01:07]} Nb4 {[%emt 0:01:01]} 40. g4 {[%emt 0:02:01]} Nc6 {[%emt 0:01:49]} 41. Bc3 {[%emt 0:15:54]} b6 {[%emt 0:15:55]} 42. cxb6 {[%emt 0:01:25]} cxb6 {[%emt 0:00:16]} 43. f5 {[%emt 0:00:45]} gxf5 {[%emt 0:01:30]} 44. gxf5 {[%emt 0:00:49]} b5 {[%emt 0:01:45]} 45. axb5 {[%emt 0:00:59]} Bxb5 {[%emt 0:00:14]} 46. f6+ {[%emt 0:00:27]} Kf8 {[%emt 0:00:46]} 47. Bb2 {[%emt 0:01:00]} a5 {[%emt 0:02:07]} 48. Ba3+ {[%emt 0:00:47]} Nb4 {[%emt 0:00:12]} 49. Kf4 {[%emt 0:01:05]} Be8 {[%emt 0:00:18]} 50. Kg5 {[%emt 0:01:26]} Bf7 {[%emt 0:00:37]} 51. Bc2 {[%emt 0:02:02]} Kg8 {[%emt 0:00:17]} 52. Bf5 {[%emt 0:01:28]} Nd5 {[%emt 0:01:16]} 53. Bb2 {[%emt 0:00:59]} a4 {[%emt 0:01:06]} 54. Kh6 {[%emt 0:02:09]} a3 {[%emt 0:00:38]} 55. Bxh7+ {[%emt 0:00:32]} Kf8 {[%emt 0:00:31]} 56. Bxa3+ {[%emt 0:00:08]} Ke8 {[%emt 0:00:09]} 57. Bb2 {[%emt 0:00:37]} Kd7 {[%emt 0:00:23]} 58. Bg6 {[%emt 0:00:20]} Ke6 {[%emt 0:00:43]} 59. Bxf7+ {[%emt 0:00:59]} Kxf7 {[%emt 0:00:14]} 60. Kg5 {[%emt 0:00:11]} Nb6 {[%emt 0:01:16]} 61. h4 {[%emt 0:01:01]} Nd7 {[%emt 0:00:14]} 62. h5 {[%emt 0:00:18]} Nf8 {[%emt 0:00:21]} 63. Kf5 {[%emt 0:01:43]} Nh7 {[%emt 0:00:26]} 64. Bc3 {[%emt 0:00:10]} Nf8 {[%emt 0:00:28]} 65. Bb4 {[%emt 0:00:09]} Nd7 {[%emt 0:01:27]} 66. Be7 {[%emt 0:00:13]} Kg8 {[%emt 0:00:21]} 67. h6 {[%emt 0:00:27]} Kh7 {[%emt 0:00:16]} 68. Kg5 {[%emt 0:00:27]} Ne5 {[%emt 0:00:26]} 69. Kh5 {[%emt 0:01:04]} Nf7 {[%emt 0:00:24]} 70. Bf8 {[%emt 0:00:18]} Nh8 {[%emt 0:00:25]} 71. Kg5 {[%emt 0:00:28]} Nf7+ {[%emt 0:00:27]} 72. Kf5 {[%emt 0:00:19]} Nd8 {[%emt 0:02:40]} 73. Bg7 {[%emt 0:01:28]} Nf7 {[%emt 0:00:40]} 74. Ke6 {[%emt 0:00:11]} Ng5+ {[%emt 0:00:30]} 75. Ke7 {[%emt 0:01:38]} Nf7 {[%emt 0:00:14]} 76. Bf8 {[%emt 0:00:27]} Ng5 {[%emt 0:01:31]} 77. f7 {[%emt 0:00:50]} Kg6 {[%emt 0:00:24]} 78. h7 {[%emt 0:00:50]} Nxf7 {[%emt 0:00:10]} 79. Bh6 {[%emt 0:00:25]} Kxh7 {[%emt 0:00:25]} 1/2-1/2

[Event "GER-ch Youth-U10 2022"]
[Site "Willingen"]
[Date "2022.06.10"]
[Round "9.15"]
[White "Classen, Marnin"]
[Black "Vu, Khoi Nguyen"]
[Result "0-1"]
[ECO "C90"]
[WhiteElo "1168"]
[BlackElo "1627"]
[Annotator "NA RC COMBH"]
[PlyCount "100"]
[EventDate "2022.06.05"]
[EventType "swiss"]
[EventRounds "11"]
[EventCountry "GER"]
[SourceTitle "playchess.com"]
[Source "ChessBase"]
[SourceQuality "1"]
[TimeControl "40/4500+30:900+30"]

1. e4 {[%emt 0:00:08]} e5 {[%emt 0:00:06]} 2. Nf3 {[%emt 0:00:11]} Nc6 {[%emt 0:00:14]} 3. Bb5 {[%emt 0:00:35]} a6 {[%emt 0:00:20]} 4. Ba4 {[%emt 0:00:18]} Nf6 {[%emt 0:00:16]} 5. O-O {[%emt 0:00:52]} Be7 {[%emt 0:00:16]} 6. Re1 {[%emt 0:00:12]} b5 {[%emt 0:00:45]} 7. Bb3 {[%emt 0:00:12]} d6 {[%emt 0:00:39]} 8. c3 {[%emt 0:00:07]} Na5 {[%emt 0:01:41]} 9. Bc2 {[%emt 0:00:13]} c5 {[%emt 0:00:29]} 10. d4 {[%emt 0:00:30]} Nc6 {[%emt 0:04:53]} 11. d5 {[%emt 0:07:21]} Nb8 {[%emt 0:00:25]} 12. Nbd2 {[%emt 0:00:31]} O-O {[%emt 0:01:19]} 13. Nf1 {[%emt 0:00:16]} Nbd7 {[%emt 0:00:09]} 14. Ng3 {[%emt 0:01:04]} Re8 {[%emt 0:00:25]} 15. Nf5 {[%emt 0:00:18]} Nb6 {[%emt 0:00:29]} 16. b3 {[%emt 0:00:18]} Bxf5 {[%emt 0:00:25]} 17. exf5 {[%emt 0:00:21]} Nbxd5 {[%emt 0:00:13]} 18. Bb2 {[%emt 0:01:38]} Nb6 {[%emt 0:00:57]} 19. Qe2 {[%emt 0:01:36]} Qc7 {[%emt 0:11:03]} 20. Rad1 {[%emt 0:02:03]} Rad8 {[%emt 0:01:18]} 21. Rd2 {[%emt 0:03:40]} Bf8 {[%emt 0:01:44]} 22. Red1 {[%emt 0:01:32]} e4 {[%emt 0:00:49]} 23. Ng5 {[%emt 0:01:30]} d5 {[%emt 0:00:38]} 24. Nh3 {[%emt 0:00:57]} h6 {[%emt 0:09:29]} 25. g3 {[%emt 0:03:35]} Qb8 {[%emt 0:03:09]} 26. Nf4 {[%emt 0:08:31]} Qc8 {[%emt 0:03:38]} 27. f3 {[%emt 0:05:17]} e3 {[%emt 0:04:39]} 28. Rd3 {[%emt 0:01:23]} c4 {[%emt 0:01:53]} 29. Rxe3 {[%emt 0:01:00]} Bc5 {[%emt 0:00:16]} 30. Ng2 {[%emt 0:00:30]} Bxe3+ {[%emt 0:00:24]} 31. Nxe3 {[%emt 0:00:13]} Qc5 {[%emt 0:00:16]} 32. Kf2 {[%emt 0:01:08]} Rd7 {[%emt 0:05:42]} 33. b4 {[%emt 0:06:32]} Qc7 {[%emt 0:00:00]} 34. Qd2 {[%emt 0:02:48]} Rde7 {[%emt 0:00:00]} 35. Ng2 {[%emt 0:00:53]} Na4 {[%emt 0:00:00]} 36. Ba1 {[%emt 0:00:20]} Qb6+ {[%emt 0:00:00]} 37. Kf1 {[%emt 0:00:34]} Qc6 {[%emt 0:01:26]} 38. Nf4 {[%emt 0:00:30]} Re3 39. Ng2 Rxf3+ {[%emt 0:01:00]} 40. Kg1 {[%emt 0:01:00]} Qb6+ {[%emt 0:00:13]} 41. Kh1 {[%emt 0:15:19]} Rf2 {[%emt 0:15:09]} 42. Qc1 {[%emt 0:00:20]} Ree2 {[%emt 0:00:12]} 43. Rg1 {[%emt 0:00:30]} Rxc2 {[%emt 0:00:11]} 44. Qe1 {[%emt 0:00:10]} Rfe2 {[%emt 0:00:17]} 45. Qd1 {[%emt 0:00:15]} Ne4 {[%emt 0:00:14]} 46. Rf1 {[%emt 0:00:32]} Qg1+ {[%emt 0:00:33]} 47. Kxg1 {[%emt 0:00:50]} Rxg2+ {[%emt 0:00:05]} 48. Kh1 {[%emt 0:00:16]} Rxh2+ {[%emt 0:00:08]} 49. Kg1 {[%emt 0:00:25]} Rhg2+ {[%emt 0:00:05]} 50. Kh1 {[%emt 0:00:39]} Nxg3# {[%emt 0:00:05]} 0-1